bitfinex/quotes_BTCUSD_20250316
["timestamp","ask_amount","ask_price","bid_price","bid_amount"]
[1742159851967,0.68076333,82998.0,82997.0,0.01147227]
[1742159852382,0.67776333,82998.0,82997.0,0.01147227]
[1742159852561,0.67976333,82998.0,82997.0,0.01147227]
[1742159852744,0.68176333,82998.0,82997.0,0.01147227]
[1742159853354,0.54200333,82998.0,82997.0,0.01147227]
[1742159853562,0.33718033,82998.0,82997.0,0.01147227]
[1742159854203,0.34922833,82998.0,82997.0,0.01147227]
[1742159854545,0.34722833,82998.0,82997.0,0.01147227]
[1742159854944,0.33518033,82998.0,82997.0,0.01147227]
[1742159855245,0.34822833,82998.0,82997.0,0.01147227]
[1742159855907,0.33618033,82998.0,82997.0,0.20425027]
[1742159856107,0.33618033,82998.0,82997.0,0.21629827]
[1742159856449,0.33145726,82998.0,82997.0,0.21629827]
[1742159856856,0.33599636,82998.0,82997.0,0.21629827]
[1742159857984,0.33399636,82998.0,82997.0,0.21629827]
[1742159858145,0.33299636,82998.0,82997.0,0.21629827]
[1742159858344,0.33499636,82998.0,82997.0,0.21629827]
[1742159858769,0.33399636,82998.0,82997.0,0.21629827]
[1742159858995,0.33299636,82998.0,82997.0,0.21629827]
[1742159859164,0.31411015,82998.0,82997.0,0.21629827]
[1742159860020,0.0045391,82998.0,82997.0,0.21629827]
[1742159860219,0.0098269,83006.0,83005.0,0.204806]
[1742159860395,0.0003384,83015.0,83012.0,0.192742]
[1742159860620,0.0003384,83015.0,83014.0,0.204784]
[1742159860621,0.30990945,83015.0,83014.0,0.204784]
[1742159861629,0.31190945,83015.0,83014.0,0.204784]
[1742159862012,0.0003384,83015.0,83014.0,0.204784]
[1742159862611,0.0003384,83015.0,83014.0,1.704784]
[1742159862814,0.0003384,83015.0,83014.0,1.785584]
[1742159863705,0.0003384,83015.0,83014.0,2.10012485]
[1742159864123,0.0003384,83015.0,83014.0,2.14742485]
[1742159865406,0.0003384,83015.0,83014.0,2.15869181]
[1742159865564,0.0013384,83015.0,83014.0,2.15869181]
[1742159865990,0.0028188,83016.0,83014.0,2.15869181]
[1742159865991,2e-07,83016.0,83015.0,0.40698685]
[1742159866155,1e-06,83024.0,83023.0,0.504761]
[1742159866356,1e-06,83024.0,83023.0,0.64000185]
[1742159866847,1e-06,83024.0,83023.0,0.76457688]
[1742159866986,1e-06,83024.0,83023.0,0.81457688]
[1742159868066,1e-06,83024.0,83023.0,0.81757688]
[1742159868447,1e-06,83024.0,83023.0,0.81357688]
[1742159868648,1e-06,83024.0,83023.0,0.81657688]
[1742159868852,0.009916,83059.0,83045.0,0.625407]
[1742159869029,0.009916,83059.0,83045.0,0.77918785]
[1742159869234,0.00046265,83046.0,83045.0,0.77718785]
[1742159870039,0.00146265,83046.0,83045.0,0.78218785]
[1742159870438,0.00146265,83046.0,83045.0,0.79400921]
[1742159870987,0.00146265,83046.0,83045.0,0.79400921]
[1742159871785,0.00146265,83046.0,83045.0,0.79800921]
[1742159872353,0.00146265,83046.0,83045.0,0.009]
[1742159872593,0.01350365,83046.0,83045.0,0.009]
[1742159872773,0.01814506,83046.0,83045.0,0.009]
[1742159873519,0.03601903,83046.0,83045.0,0.004]
[1742159874615,0.012041,83044.0,83038.0,0.204724]
[1742159874817,0.00463069,83043.0,83040.0,0.012042]
[1742159875215,0.204707,83045.0,83040.0,0.012042]
[1742159875417,0.00463069,83042.0,83040.0,0.012042]
[1742159875631,0.204707,83045.0,83040.0,0.012042]
[1742159875781,0.00463069,83041.0,83040.0,0.012042]
[1742159875979,0.204707,83045.0,83040.0,0.206719]
[1742159876180,0.01933662,83046.0,83045.0,0.204707]
[1742159877007,0.00046265,83046.0,83045.0,0.204707]
[1742159878389,0.00046265,83046.0,83045.0,0.206707]
[1742159879617,0.00046265,83046.0,83045.0,0.205707]
[1742159879819,0.00046265,83046.0,83045.0,0.204707]
[1742159880989,0.00046265,83046.0,83045.0,0.206707]
[1742159881488,0.00046265,83046.0,83045.0,0.208707]
[1742159882533,0.00046265,83046.0,83045.0,1.708707]
[1742159885549,0.00046265,83046.0,83045.0,0.208707]
[1742159885985,0.00046265,83046.0,83045.0,1.708707]
[1742159886850,0.09120365,83046.0,83045.0,0.004]
[1742159887066,0.28832511,83046.0,83045.0,0.004]
[1742159887883,0.012041,83044.0,83037.0,0.204726]
[1742159888292,0.01651808,83043.0,83037.0,0.204726]
[1742159888466,0.012042,83042.0,83037.0,0.204726]
[1742159888668,0.32161305,83042.0,83037.0,0.192685]
[1742159888909,0.00447708,83041.0,83037.0,0.192685]
[1742159889115,0.192687,83037.0,83035.0,1.5]
[1742159889291,0.012042,83038.0,83035.0,1.5]
[1742159889494,0.059442,83040.0,83035.0,1.5]
[1742159889853,0.00447708,83037.0,83035.0,1.5]
[1742159890068,0.00447708,83037.0,83034.0,0.192691]
[1742159890272,0.30957105,83041.0,83040.0,0.20472]
[1742159890472,0.30957105,83041.0,83039.0,0.012042]
[1742159890692,0.01887498,83040.0,83039.0,0.012042]
[1742159890868,0.01887498,83040.0,83038.0,1.692682]
[1742159891070,0.01887498,83040.0,83038.0,1.5]
[1742159891310,0.30957105,83041.0,83038.0,1.5]
[1742159892123,0.30957105,83041.0,83038.0,1.693682]
[1742159892446,0.30957105,83041.0,83040.0,0.012042]
[1742159894538,0.30957105,83041.0,83040.0,1.512042]
[1742159894741,0.30957105,83041.0,83040.0,1.513042]
[1742159894951,0.30957105,83041.0,83040.0,1.514042]
[1742159895781,0.32844582,83041.0,83040.0,0.002]
[1742159896200,0.3449649,83041.0,83040.0,0.002]
[1742159896993,0.5376399,83041.0,83040.0,0.0021691]
[1742159897779,0.5376399,83041.0,83040.0,0.0001691]
[1742159898502,0.51876513,83041.0,83040.0,0.0001691]
[1742159901554,0.31404813,83041.0,83040.0,0.0122111]
[1742159901987,0.31404813,83041.0,83040.0,0.0001691]
[1742159902174,0.31404813,83041.0,83040.0,0.0122111]
[1742159902804,0.31404813,83041.0,83040.0,0.0142111]
[1742159903010,0.31404813,83041.0,83040.0,0.0162111]
[1742159903253,0.31404813,83041.0,83040.0,1.5162111]
[1742159903656,0.30957105,83041.0,83040.0,1.5142111]
[1742159904035,0.30957105,83041.0,83040.0,1.5162111]
[1742159904173,0.31403214,83041.0,83040.0,1.5162111]
[1742159904712,0.31403214,83041.0,83040.0,1.5142111]
[1742159905034,0.31403214,83041.0,83040.0,1.5462111]
[1742159905892,0.33290675,83041.0,83040.0,1.5462111]
[1742159907075,0.30957105,83041.0,83040.0,1.5462111]
[1742159911555,0.0003382,83045.0,83044.0,0.204709]
[1742159912116,0.0003382,83045.0,83044.0,0.34515381]
[1742159912328,0.0003382,83045.0,83044.0,0.34394985]
[1742159913155,0.0003382,83045.0,83044.0,1.84394985]
[1742159913555,0.0003382,83045.0,83044.0,1.84494985]
[1742159913782,0.0003382,83045.0,83044.0,1.96452488]
[1742159914322,0.0003382,83045.0,83044.0,1.98921555]
[1742159914486,0.0003382,83045.0,83044.0,1.99221555]
[1742159915293,0.0003382,83045.0,83044.0,1.99121555]
[1742159915712,0.0003382,83045.0,83044.0,1.99421555]
[1742159919628,2e-07,83045.0,83044.0,2.29421555]
[1742159922622,2e-07,83045.0,83044.0,2.29177555]
[1742159922824,8.5e-07,83046.0,83045.0,0.33158185]
[1742159923033,8.5e-07,83046.0,83045.0,0.50115688]
[1742159923193,8.5e-07,83046.0,83045.0,0.62805688]
[1742159923395,8.5e-07,83046.0,83045.0,0.70615688]
[1742159923596,8.5e-07,83046.0,83045.0,2.20615688]
[1742159924358,8.5e-07,83046.0,83045.0,2.20915688]
[1742159925314,8.5e-07,83046.0,83045.0,2.21115688]
[1742159926752,8.5e-07,83046.0,83045.0,2.43115532]
[1742159927410,8.5e-07,83046.0,83045.0,2.42815532]
[1742159927756,8.5e-07,83046.0,83045.0,2.43315532]
[1742159927963,0.0881994,83089.0,83088.0,0.204601]
[1742159928310,0.0931286,83089.0,83088.0,0.012035]
[1742159928518,0.0832292,83089.0,83086.0,0.204604]
[1742159928900,0.0832292,83089.0,83088.0,1.5]
[1742159929258,0.0832292,83089.0,83069.0,0.01188086]
[1742159929259,0.046,83071.0,83069.0,0.01188086]
[1742159929676,0.0045337,83070.0,83069.0,0.02391886]
[1742159930175,0.046,83071.0,83070.0,0.204646]
[1742159932352,0.046,83071.0,83070.0,0.012038]
[1742159932565,0.046,83071.0,83070.0,0.013038]
[1742159932993,0.0505337,83071.0,83070.0,0.013038]
[1742159933147,0.0505337,83071.0,83070.0,1.513038]
[1742159933351,0.0505337,83071.0,83070.0,1.501]
[1742159935351,0.0505337,83071.0,83070.0,1.705646]
[1742159935819,0.046,83071.0,83070.0,1.705646]
[1742159942113,0.0783,83072.0,83070.0,1.705646]
[1742159942328,0.01886655,83075.0,83074.0,0.204636]
[1742159942752,0.02340025,83075.0,83074.0,0.204636]
[1742159942922,0.02340025,83075.0,83074.0,1.704636]
[1742159946921,0.02340025,83075.0,83074.0,0.204636]
[1742159947196,0.02340025,83075.0,83074.0,1.704636]
[1742159948979,0.02340025,83075.0,83074.0,0.204636]
[1742159952880,0.02340025,83075.0,83074.0,1.704636]
[1742159953346,0.01886655,83075.0,83074.0,1.704636]
[1742159954732,0.30957105,83077.0,83076.0,0.204631]
[1742159956274,0.0099138,83083.0,83082.0,0.204616]
[1742159956682,0.0807,83090.0,83087.0,0.192568]
[1742159957065,0.00452644,83088.0,83087.0,0.192568]
[1742159958047,0.02339128,83088.0,83087.0,0.204603]
[1742159958390,0.01886484,83088.0,83087.0,0.204603]
[1742159958918,0.0486,83094.0,83088.0,0.012035]
[1742159959123,0.00175145,83089.0,83088.0,0.012035]
[1742159959562,0.00075145,83089.0,83088.0,0.012035]
[1742159959946,0.00075145,83089.0,83088.0,0.011035]
[1742159960722,0.00175145,83089.0,83088.0,0.011035]
[1742159962470,0.02061512,83089.0,83088.0,0.011035]
[1742159965643,0.02514796,83089.0,83088.0,1.511035]
[1742159966030,0.02061512,83089.0,83088.0,1.511035]
[1742159967697,0.00175145,83089.0,83088.0,1.511035]
[1742159974146,0.00175145,83089.0,83088.0,1.52557585]
[1742159978650,0.00175145,83089.0,83088.0,1.55017325]
[1742159979274,4.5e-07,83089.0,83088.0,1.97474828]
[1742159979676,0.0003384,83099.0,83098.0,0.012033]
[1742159979879,0.0004623,83099.0,83098.0,0.35511685]
[1742159981361,0.0004623,83099.0,83098.0,0.35711685]
[1742159981785,0.0004623,83099.0,83098.0,0.36011685]
[1742159984984,0.0004623,83099.0,83098.0,0.209576]
[1742159985183,0.0824623,83099.0,83098.0,0.209576]
[1742159985594,0.08704191,83099.0,83098.0,0.209576]
[1742159989465,0.08704191,83099.0,83098.0,1.709576]
[1742159989817,0.0824623,83099.0,83098.0,1.709576]
[1742159992585,0.0824623,83099.0,83098.0,0.209576]
[1742159992791,0.0824623,83099.0,83098.0,0.214296]
[1742159993087,0.08704002,83099.0,83098.0,1.714296]
[1742159993451,0.0824623,83099.0,83098.0,1.714296]
[1742159998152,0.0824623,83099.0,83098.0,0.214296]
[1742159998362,0.08704002,83099.0,83098.0,0.214296]
[1742159998560,0.08704002,83099.0,83098.0,1.714296]
[1742159998808,0.0824623,83099.0,83098.0,1.714296]
[1742160000634,0.2870363,83099.0,83098.0,0.00972]
[1742160001029,0.29160896,83099.0,83098.0,0.00972]
[1742160001812,0.27957596,83099.0,83098.0,0.00472]
[1742160001976,0.29160896,83099.0,83098.0,0.00472]
[1742160002388,0.30364355,83099.0,83098.0,0.00472]
[1742160005076,0.32250568,83099.0,83098.0,0.00472]
[1742160005985,0.30364355,83099.0,83098.0,0.00472]
[1742160009253,0.32250573,83099.0,83098.0,0.00472]
[1742160009673,0.30364355,83099.0,83098.0,0.00472]
[1742160014105,0.30364355,83099.0,83098.0,0.03472]
[1742160014626,0.32250577,83099.0,83098.0,0.03472]
[1742160023712,0.32250577,83099.0,83098.0,0.03444981]
[1742160026131,0.30364355,83099.0,83098.0,0.03444981]
[1742160029438,0.32250575,83099.0,83098.0,0.03444981]
[1742160030201,0.32250575,83099.0,83098.0,0.01700472]
[1742160030590,0.30364355,83099.0,83098.0,0.01700472]
[1742160031152,0.29864355,83099.0,83098.0,0.01700472]
[1742160032298,0.30023296,83099.0,83098.0,0.01700472]
[1742160033824,0.31909535,83099.0,83098.0,0.01700472]
[1742160038003,0.30023296,83099.0,83098.0,0.01700472]
[1742160038842,0.00616207,83099.0,83098.0,0.20954772]
[1742160039047,0.01819507,83099.0,83098.0,0.01700472]
[1742160039247,0.01819507,83099.0,83098.0,0.01717392]
[1742160039522,0.01853347,83099.0,83098.0,1.51717392]
[1742160040189,0.01853347,83099.0,83098.0,0.01717392]
[1742160041336,0.03739565,83099.0,83098.0,0.01717392]
[1742160041573,0.16589565,83099.0,83098.0,0.01717392]
[1742160041885,0.1674001,83099.0,83098.0,0.01717392]
[1742160042306,0.14853792,83099.0,83098.0,0.01717392]
[1742160043351,0.17308042,83099.0,83098.0,0.01717392]
[1742160044664,0.17157597,83099.0,83098.0,0.01717392]
[1742160045345,0.19043867,83099.0,83098.0,0.01717392]
[1742160049142,0.17157597,83099.0,83098.0,0.01717392]
[1742160052690,0.19043924,83099.0,83098.0,0.01717392]
[1742160053520,0.17157597,83099.0,83098.0,0.01717392]
[1742160053721,0.30749597,83099.0,83098.0,0.01717392]
[1742160054477,0.28295347,83099.0,83098.0,0.01717392]
[1742160056343,0.30659395,83099.0,83098.0,0.01717392]
[1742160056747,0.32545736,83099.0,83098.0,0.01717392]
[1742160057669,0.30659395,83099.0,83098.0,0.01717392]
[1742160061152,0.32545739,83099.0,83098.0,0.01717392]
[1742160062290,0.30659395,83099.0,83098.0,0.01965392]
[1742160063230,0.28295347,83099.0,83098.0,0.01965392]
[1742160066093,0.58295347,83099.0,83098.0,0.01965392]
[1742160066534,0.60181757,83099.0,83098.0,0.01965392]
[1742160069080,0.58395347,83099.0,83098.0,0.01965392]
[1742160070687,0.504597,83090.0,83089.0,0.0001692]
[1742160070916,0.394435,83089.0,83088.0,2e-07]
[1742160071140,0.394435,83089.0,83030.0,0.13866873]
[1742160071141,0.204681,83056.0,83049.0,0.1264]
[1742160071340,0.192655,83050.0,83049.0,0.1264]
[1742160071566,0.204695,83050.0,83049.0,0.1264]
[1742160071767,0.21083631,83050.0,83049.0,0.1264]
[1742160072336,0.21083631,83050.0,83049.0,0.0479]
[1742160072768,0.2108859,83050.0,83049.0,0.0519]
[1742160073287,0.22975796,83050.0,83049.0,0.0519]
[1742160073505,0.24210194,83050.0,83049.0,0.0519]
[1742160073717,0.24210194,83050.0,83049.0,0.0569]
[1742160074147,0.24210194,83050.0,83049.0,0.009]
[1742160075186,0.24210194,83050.0,83049.0,0.004]
[1742160075293,0.24210194,83050.0,83046.0,0.0001691]
[1742160075294,0.63804802,83050.0,83046.0,0.0001691]
[1742160075494,0.204702,83047.0,83046.0,0.0001691]
[1742160075968,0.21082673,83047.0,83046.0,0.0001691]
[1742160076182,0.60677281,83047.0,83046.0,0.0001691]
[1742160076868,0.41411181,83047.0,83046.0,0.0001691]
[1742160077059,0.41411181,83047.0,83046.0,0.0021691]
[1742160077482,0.41411181,83047.0,83046.0,0.0001691]
[1742160077634,0.41411181,83047.0,83046.0,0.0031691]
[1742160078767,0.41411181,83047.0,83046.0,0.0061691]
[1742160080147,0.41411181,83047.0,83046.0,0.00616474]
[1742160080443,0.432985,83047.0,83046.0,0.00616474]
[1742160083296,0.432985,83047.0,83046.0,1.50616474]
[1742160083489,0.432985,83047.0,83046.0,1.53616474]
[1742160084650,0.432985,83047.0,83046.0,0.03616474]
[1742160087986,0.432985,83047.0,83046.0,0.03316474]
[1742160089004,0.432985,83047.0,83046.0,0.03416474]
[1742160089716,0.432985,83047.0,83046.0,0.03116474]
[1742160090059,0.432985,83047.0,83046.0,0.03316474]
[1742160099151,0.4333236,83047.0,83046.0,0.03316474]
[1742160116415,0.94270052,83047.0,83046.0,0.03316474]
[1742160116615,0.94270052,83047.0,83045.0,0.0001691]
[1742160116616,0.012042,83041.0,83040.0,0.0001691]
[1742160116815,0.72024264,83041.0,83040.0,0.0001691]
[1742160117015,0.72480547,83041.0,83040.0,0.0001691]
[1742160117242,1.08741771,83041.0,83040.0,0.0001691]
[1742160117480,1.13441771,83041.0,83040.0,0.0001691]
[1742160118079,1.25899274,83041.0,83040.0,1e-07]
[1742160118242,1.26099274,83041.0,83040.0,1e-07]
[1742160118441,1.14141771,83041.0,83040.0,1e-07]
[1742160119347,1.14441771,83041.0,83040.0,1e-07]
[1742160119544,1.15695856,83041.0,83040.0,1e-07]
[1742160119745,1.15395856,83041.0,83040.0,1e-07]
[1742160119944,1.17583899,83041.0,83040.0,1e-07]
[1742160120155,1.29541402,83041.0,83040.0,1e-07]
[1742160120546,1.30438278,83041.0,83040.0,1e-07]
[1742160120795,1.30538278,83041.0,83040.0,1e-07]
[1742160120996,1.18580775,83041.0,83040.0,1e-07]
[1742160121205,1.16692732,83041.0,83040.0,1e-07]
[1742160121411,1.17092732,83041.0,83040.0,1e-07]
[1742160122951,1.16792732,83041.0,83040.0,1e-07]
[1742160123153,0.204802,83007.0,83002.0,1.4780001]
[1742160123490,0.00581955,83006.0,83002.0,1.4780001]
[1742160124330,0.204806,83005.0,83002.0,1.4780001]
[1742160124542,0.02470119,83006.0,83002.0,1.47841335]
[1742160124985,0.00581955,83005.0,83002.0,1.47841335]
[1742160125714,0.00581955,83005.0,83003.0,0.204811]
[1742160126092,0.00581955,83005.0,83003.0,0.012047]
[1742160126293,0.19957955,83005.0,83002.0,1.47841335]
[1742160126494,0.012047,83003.0,83002.0,0.00041325]
[1742160127052,0.204811,83003.0,83002.0,0.00041325]
[1742160127251,0.21063055,83003.0,83002.0,0.00041325]
[1742160129244,0.21063055,83003.0,83002.0,0.00241325]
[1742160129567,0.21063055,83003.0,83002.0,0.03241325]
[1742160130540,0.22951336,83003.0,83002.0,0.03241325]
[1742160131586,0.21063055,83003.0,83002.0,0.03241325]
[1742160132194,0.57324279,83003.0,83002.0,0.03241325]
[1742160134561,0.59212554,83003.0,83002.0,0.03241325]
[1742160135070,0.59212554,83003.0,83002.0,0.03258255]
[1742160139821,0.57324279,83003.0,83002.0,0.03058255]
[1742160140244,0.57324279,83003.0,83002.0,0.03258255]
[1742160140856,0.70920279,83003.0,83002.0,0.03258255]
[1742160141236,1.09030279,83003.0,83002.0,0.03258255]
[1742160141657,1.09030279,83003.0,83002.0,0.03058255]
[1742160142946,1.10918776,83003.0,83002.0,0.03058255]
[1742160143350,0.72808776,83003.0,83002.0,0.03058255]
[1742160143720,0.73408776,83003.0,83002.0,0.03058255]
[1742160144209,0.70920279,83003.0,83002.0,0.03058255]
[1742160144531,0.71420279,83003.0,83002.0,0.03058255]
[1742160144955,0.71120279,83003.0,83002.0,0.03058255]
[1742160146375,0.71320279,83003.0,83002.0,0.03058255]
[1742160146931,0.70920279,83003.0,83002.0,0.03058255]
[1742160147145,0.71120279,83003.0,83002.0,0.03058255]
[1742160147348,0.71320279,83003.0,83002.0,0.03058255]
[1742160147587,0.00981955,83003.0,83002.0,0.04262955]
[1742160147789,0.00981955,83003.0,83002.0,0.23539555]
[1742160147790,0.01015795,83003.0,83002.0,0.23539555]
[1742160147990,0.0043384,83003.0,83002.0,0.23539555]
[1742160149083,0.0003384,83003.0,83002.0,0.23539555]
[1742160149393,0.0013384,83003.0,83002.0,0.23539555]
[1742160149601,0.0003384,83003.0,83002.0,0.23539555]
[1742160150378,0.0013384,83003.0,83002.0,0.23539555]
[1742160151057,0.0003384,83003.0,83002.0,0.23539555]
[1742160151259,0.0003384,83003.0,83002.0,1.7386002]
[1742160151470,0.0003384,83003.0,83002.0,1.81309555]
[1742160151800,0.0003384,83003.0,83002.0,1.81109555]
[1742160152219,0.0003384,83003.0,83002.0,1.8763364]
[1742160152655,0.0003384,83003.0,83002.0,2.1763364]
[1742160153324,4e-07,83003.0,83002.0,2.35091143]
[1742160153518,0.37257214,83025.0,83024.0,0.204759]
[1742160153789,0.0099599,83025.0,83024.0,0.329159]
[1742160153996,0.36261224,83040.0,83036.0,0.192687]
[1742160154213,0.37241864,83040.0,83036.0,0.204729]
[1742160154352,0.37241864,83040.0,83039.0,0.012042]
[1742160154583,0.36261224,83040.0,83039.0,0.012042]
[1742160155210,0.36261224,83040.0,83039.0,0.01245525]
[1742160155650,0.36261224,83040.0,83039.0,0.01145525]
[1742160156314,0.36802354,83040.0,83039.0,0.01145525]
[1742160156563,0.36802354,83040.0,83039.0,0.00041325]
[1742160156807,0.38689905,83040.0,83039.0,0.00041325]
[1742160157262,0.38789905,83040.0,83039.0,0.00041325]
[1742160157671,0.38689905,83040.0,83039.0,0.00041325]
[1742160158204,0.38689905,83040.0,83039.0,0.01245525]
[1742160158409,0.36802354,83040.0,83039.0,0.01245525]
[1742160158593,0.36802354,83040.0,83039.0,0.20513525]
[1742160160250,0.36836194,83040.0,83039.0,0.20513525]
[1742160161162,0.36836194,83040.0,83039.0,0.01245525]
[1742160161799,0.36836194,83040.0,83039.0,0.20513525]
[1742160163789,0.36836194,83040.0,83039.0,1.70513525]
[1742160164200,0.36295064,83040.0,83039.0,1.70513525]
[1742160165137,0.36295064,83040.0,83039.0,1.73613525]
[1742160166758,0.36295064,83040.0,83039.0,0.23613525]
[1742160167162,0.36837724,83040.0,83039.0,0.23613525]
[1742160167454,0.005765,83040.0,83039.0,0.24013525]
[1742160167994,0.0003384,83040.0,83039.0,0.24013525]
[1742160170762,0.0003384,83040.0,83039.0,1.74013525]
[1742160171867,0.0003384,83040.0,83039.0,1.74030435]
[1742160173777,0.0003384,83040.0,83039.0,0.24030435]
[1742160174407,0.0003384,83040.0,83039.0,1.74030435]
[1742160177252,0.0003384,83040.0,83039.0,0.24030435]
[1742160177802,0.0003384,83040.0,83039.0,1.74030435]
[1742160189179,1e-06,83041.0,83040.0,0.45648285]
[1742160189428,0.0050586,83047.0,83046.0,0.64584585]
[1742160190096,0.0050586,83047.0,83046.0,2.14584585]
[1742160190730,0.0050586,83047.0,83046.0,2.14484585]
[1742160191397,6e-07,83047.0,83046.0,2.26842088]
[1742160191960,6e-07,83047.0,83046.0,2.27342088]
[1742160192634,0.0098473,83067.0,83066.0,0.204655]
[1742160193013,0.0788,83077.0,83076.0,0.204631]
[1742160193250,0.0887267,83077.0,83076.0,0.204631]
[1742160193465,0.09418616,83077.0,83076.0,0.204631]
[1742160193639,0.08425946,83077.0,83076.0,1.704631]
[1742160193854,0.08430069,83077.0,83076.0,0.204631]
[1742160194001,0.07884123,83077.0,83076.0,0.204631]
[1742160194218,0.08430069,83077.0,83076.0,0.204631]
[1742160194938,0.07884123,83077.0,83076.0,0.204631]
[1742160195559,0.07884123,83077.0,83076.0,0.205631]
[1742160195955,0.08430069,83077.0,83076.0,0.206631]
[1742160196160,0.08463889,83077.0,83076.0,0.206631]
[1742160199340,0.08463889,83077.0,83076.0,0.002]
[1742160199548,0.33586789,83077.0,83076.0,0.002]
[1742160200115,0.33586789,83077.0,83076.0,0.001]
[1742160200315,0.35473674,83077.0,83076.0,0.001]
[1742160200518,0.012039,83057.0,83050.0,0.192652]
[1742160200773,0.00549666,83056.0,83053.0,0.01204]
[1742160200970,0.00549666,83056.0,83055.0,0.01204]
[1742160201184,0.00549666,83056.0,83053.0,0.01204]
[1742160201185,0.00549666,83056.0,83053.0,0.204685]
[1742160201588,0.00549666,83056.0,83054.0,0.01204]
[1742160202135,0.00549666,83056.0,83052.0,0.204688]
[1742160202136,0.00549666,83056.0,83055.0,0.004]
[1742160202489,0.192674,83042.0,83036.0,0.012042]
[1742160202705,0.076,83042.0,83038.0,0.11901635]
[1742160202881,0.076,83042.0,83038.0,0.31169835]
[1742160203084,0.00549307,83041.0,83038.0,0.10697435]
[1742160203314,0.20472,83040.0,83033.0,0.192693]
[1742160203633,0.21111729,83040.0,83033.0,0.192694]
[1742160203843,0.21115849,83040.0,83033.0,0.204737]
[1742160204369,0.21115849,83040.0,83032.0,0.012043]
[1742160204549,0.21115849,83040.0,83034.0,0.192692]
[1742160205079,0.21115849,83040.0,83039.0,0.0311691]
[1742160205452,0.00643849,83040.0,83039.0,0.0311691]
[1742160205660,0.02531319,83040.0,83039.0,0.0321691]
[1742160207759,0.02531319,83040.0,83039.0,0.2248491]
[1742160207959,0.02531319,83040.0,83039.0,0.2368911]
[1742160208402,0.00643849,83040.0,83039.0,0.2368911]
[1742160208574,4.12e-05,83040.0,83039.0,0.2368911]
[1742160208796,4.12e-05,83040.0,83039.0,1.7368911]
[1742160210225,4.12e-05,83040.0,83039.0,1.75143195]
[1742160211539,4.12e-05,83040.0,83039.0,1.75043195]
[1742160211738,4.12e-05,83040.0,83039.0,1.74943195]
[1742160212250,4.12e-05,83040.0,83039.0,1.77344506]
[1742160212456,4.12e-05,83040.0,83039.0,1.77844506]
[1742160212657,4.12e-05,83040.0,83039.0,1.78344506]
[1742160213231,4.12e-05,83040.0,83039.0,1.91924506]
[1742160215881,4.12e-05,83040.0,83039.0,1.78344506]
[1742160216118,4.12e-05,83040.0,83039.0,1.91924506]
[1742160217561,4.12e-05,83040.0,83039.0,1.92832438]
[1742160223718,4.12e-05,83040.0,83039.0,1.92832438]
[1742160224028,4.12e-05,83040.0,83039.0,1.7448911]
[1742160224226,4.12e-05,83040.0,83039.0,0.2448911]
[1742160225022,4.12e-05,83040.0,83039.0,0.0351691]
[1742160225224,4.12e-05,83040.0,83039.0,0.0452111]
[1742160225641,4.12e-05,83040.0,83039.0,0.0482111]
[1742160225833,4.12e-05,83040.0,83039.0,0.0452111]
[1742160226279,4.12e-05,83040.0,83039.0,0.0331691]
[1742160226604,4.12e-05,83040.0,83039.0,0.0361691]
[1742160226863,0.00529238,83040.0,83039.0,0.0361691]
[1742160227076,4.12e-05,83040.0,83039.0,0.0361691]
[1742160227660,0.00529238,83040.0,83039.0,0.0361691]
[1742160227910,4.12e-05,83040.0,83039.0,0.0482111]
[1742160228381,0.00529238,83040.0,83039.0,0.0482111]
[1742160228579,4.12e-05,83040.0,83039.0,0.0482111]
[1742160228799,0.00529238,83040.0,83039.0,0.0482111]
[1742160229116,4.12e-05,83040.0,83039.0,0.0482111]
[1742160229579,0.00529238,83040.0,83039.0,0.0482111]
[1742160229775,4.12e-05,83040.0,83039.0,0.0482111]
[1742160230000,0.00529238,83040.0,83039.0,0.0482111]
[1742160230205,4.12e-05,83040.0,83039.0,0.0482111]
[1742160230408,0.00529238,83040.0,83039.0,0.0482111]
[1742160230561,4.12e-05,83040.0,83039.0,0.0482111]
[1742160230761,0.00529238,83040.0,83039.0,0.0482111]
[1742160234107,0.00529238,83040.0,83039.0,0.0361691]
[1742160235647,0.00529238,83040.0,83039.0,0.0482111]
[1742160240213,0.00529238,83040.0,83039.0,0.0361691]
[1742160241582,0.00529238,83040.0,83039.0,0.2288491]
[1742160242607,0.00529238,83040.0,83039.0,0.2408911]
[1742160244434,4.12e-05,83040.0,83039.0,0.2408911]
[1742160244841,4.12e-05,83040.0,83039.0,1.7408911]
[1742160249830,4.12e-05,83040.0,83039.0,1.83503195]
[1742160250770,4.12e-05,83040.0,83039.0,1.83203195]
[1742160250977,4.12e-05,83040.0,83039.0,1.83703195]
[1742160252379,4.12e-05,83040.0,83039.0,1.83403195]
[1742160252675,4.12e-05,83040.0,83039.0,1.83903195]
[1742160252880,4.12e-05,83040.0,83039.0,1.86325269]
[1742160254141,4.12e-05,83040.0,83039.0,2.28282772]
[1742160254344,4.12e-05,83040.0,83039.0,2.33532772]
[1742160255003,4.12e-05,83040.0,83039.0,2.33032772]
[1742160255411,4.12e-05,83040.0,83039.0,2.33132772]
[1742160255950,4.12e-05,83040.0,83039.0,2.33732772]
[1742160256132,4.12e-05,83040.0,83039.0,2.34044273]
[1742160256517,4.12e-05,83040.0,83039.0,2.34644273]
[1742160256870,4.12e-05,83040.0,83039.0,2.34044273]
[1742160257291,4.12e-05,83040.0,83039.0,2.34644273]
[1742160261646,4.12e-05,83040.0,83039.0,2.1826111]
[1742160261976,4.12e-05,83040.0,83039.0,2.19715195]
[1742160262914,4.12e-05,83040.0,83039.0,2.18515195]
[1742160263142,4.12e-05,83040.0,83039.0,2.19615195]
[1742160263366,4.12e-05,83040.0,83039.0,2.19015195]
[1742160263628,4.12e-05,83040.0,83039.0,2.18515195]
[1742160263865,4.12e-05,83040.0,83039.0,2.19015195]
[1742160264101,4.12e-05,83040.0,83039.0,2.19115195]
[1742160264333,4.12e-05,83040.0,83039.0,2.19615195]
[1742160264565,4.12e-05,83040.0,83039.0,2.19015195]
[1742160264786,4.12e-05,83040.0,83039.0,2.19515195]
[1742160265678,4.12e-05,83040.0,83039.0,2.19015195]
[1742160266609,4.12e-05,83040.0,83039.0,2.19515195]
[1742160268609,4.12e-05,83040.0,83039.0,2.1806111]
[1742160268993,4.12e-05,83040.0,83039.0,1.8806111]
[1742160271796,0.0025212,83040.0,83039.0,1.8806111]
[1742160272810,0.0025212,83040.0,83039.0,1.7448911]
[1742160273040,0.0025212,83040.0,83039.0,1.8806111]
[1742160294747,0.0025212,83040.0,83039.0,1.90322434]
[1742160296038,0.0025212,83040.0,83039.0,1.76750434]
[1742160296214,0.0025212,83040.0,83039.0,1.90318434]
[1742160300422,0.0025212,83040.0,83039.0,1.91772519]
[1742160300627,0.0025212,83040.0,83039.0,2.21772519]
[1742160301236,2e-07,83040.0,83039.0,2.21772519]